bitfinex-derivatives/quotes_BTCF0:USTF0_20250922
["timestamp","ask_amount","ask_price","bid_price","bid_amount"]
[1758501368738,0.02569,114930.0,114920.0,0.3373952]
[1758501368946,0.38649,114930.0,114920.0,0.3373952]
[1758501369244,0.73730287,114930.0,114920.0,0.00044]
[1758501369450,0.40019,114930.0,114920.0,0.00044]
[1758501369654,0.76066188,114930.0,114920.0,0.00044]
[1758501369852,0.76066188,114930.0,114920.0,4e-05]
[1758501370151,1.01066188,114930.0,114920.0,4e-05]
[1758501370850,0.67354901,114930.0,114920.0,0.0873952]
[1758501371045,1.01066188,114930.0,114920.0,4e-05]
[1758501371246,1.01066188,114930.0,114920.0,0.00044]
[1758501371752,0.67354901,114930.0,114920.0,0.00044]
[1758501372057,1.01066188,114930.0,114920.0,0.00044]
[1758501372747,1.01066188,114930.0,114920.0,0.0873952]
[1758501373250,0.67354901,114930.0,114920.0,0.0873952]
[1758501373450,1.01066188,114930.0,114920.0,0.0873952]
[1758501373658,1.01066188,114930.0,114920.0,0.00044]
[1758501374044,0.03011,114920.0,114910.0,0.0001]
[1758501374355,0.03557,114910.0,114900.0,0.0001]
[1758501374554,0.03503,114900.0,114890.0,0.0870779]
[1758501374760,0.39583,114900.0,114890.0,0.0877779]
[1758501374957,0.38267,114900.0,114890.0,0.3734579]
[1758501375158,0.38267,114910.0,114900.0,0.1226503]
[1758501375349,0.38267,114910.0,114900.0,0.1093503]
[1758501375547,0.37967,114910.0,114900.0,0.3726503]
[1758501376062,0.01887,114910.0,114900.0,0.70976317]
[1758501376255,0.37967,114910.0,114900.0,0.3593503]
[1758501376465,0.72994287,114910.0,114890.0,0.1011753]
[1758501376758,0.38267,114900.0,114890.0,0.1235553]
[1758501376953,0.02187,114910.0,114900.0,0.1093503]
[1758501377157,0.02187,114910.0,114900.0,0.1226503]
[1758501377359,0.02187,114910.0,114900.0,0.1236503]
[1758501377658,0.38367,114910.0,114900.0,0.1236503]
[1758501378156,0.73394287,114910.0,114900.0,0.001]
[1758501378853,0.75732813,114910.0,114900.0,0.001]
[1758501379048,0.39683,114910.0,114900.0,0.0879703]
[1758501379251,0.73394287,114910.0,114900.0,0.0883703]
[1758501379463,0.73394287,114910.0,114900.0,0.0879703]
[1758501379662,0.73394287,114910.0,114900.0,0.0903703]
[1758501379863,0.73394287,114910.0,114900.0,0.0034]
[1758501381351,0.75732498,114910.0,114900.0,0.003]
[1758501382050,1.00732498,114910.0,114900.0,0.0034]
[1758501382256,1.00732498,114910.0,114900.0,0.003]
[1758501382768,1.00732498,114910.0,114900.0,0.0034]
[1758501383065,0.67021211,114910.0,114900.0,0.0034]
[1758501383267,0.42021211,114910.0,114900.0,0.0034]
[1758501383456,0.75732498,114910.0,114900.0,0.0034]
[1758501385060,0.75732498,114910.0,114900.0,0.0903703]
[1758501385270,0.75732498,114910.0,114900.0,0.0034]
[1758501385969,1.02476927,114910.0,114900.0,0.003]
[1758501386164,1.02476927,114910.0,114900.0,0.0034]
[1758501386360,0.0056,114890.0,114850.0,0.0001]
[1758501386559,1.08162287,114860.0,114850.0,0.03714]
[1758501386764,0.38371,114860.0,114850.0,0.1241481]
[1758501386970,0.38371,114860.0,114850.0,0.45966097]
[1758501387162,0.38371,114860.0,114850.0,0.3729481]
[1758501387163,0.3608,114860.0,114850.0,0.3729481]
[1758501387360,0.3608,114880.0,114870.0,0.122533]
[1758501387566,0.38418328,114880.0,114870.0,0.45964587]
[1758501387869,0.02815,114860.0,114840.0,0.0024]
[1758501388071,0.02291,114840.0,114830.0,0.09432351]
[1758501388267,0.70351287,114840.0,114820.0,4e-05]
[1758501388462,0.69791287,114830.0,114800.0,0.0137]
[1758501388760,1.05871287,114810.0,114800.0,0.0145]
[1758501389165,0.3608,114810.0,114800.0,0.1015461]
[1758501389364,0.3608,114810.0,114800.0,0.0137]
[1758501389562,0.69791287,114810.0,114800.0,0.1011461]
[1758501390060,0.69691287,114810.0,114800.0,0.1011461]
[1758501390257,1.12740708,114810.0,114800.0,0.1011461]
[1758501390465,0.80029421,114810.0,114800.0,0.1027461]
[1758501390669,0.01,114810.0,114800.0,0.3531461]
[1758501391062,0.34811287,114810.0,114800.0,0.0161]
[1758501391266,0.70891287,114810.0,114800.0,0.0024]
[1758501391467,0.70891287,114810.0,114800.0,0.0157]
[1758501391768,0.3718,114810.0,114800.0,0.0161]
[1758501392070,0.77713787,114810.0,114800.0,0.0157]
[1758501392270,0.77713787,114810.0,114800.0,0.0161]
[1758501392568,0.77713787,114810.0,114800.0,0.1031461]
[1758501392768,0.77713787,114810.0,114800.0,0.0161]
[1758501393067,0.079225,114810.0,114800.0,0.3531461]
[1758501393466,0.011,114810.0,114800.0,0.3531461]
[1758501393978,0.3609,114820.0,114810.0,0.0137]
[1758501394168,0.7216,114820.0,114810.0,0.0137]
[1758501394365,0.7216,114820.0,114800.0,0.0157]
[1758501394668,0.3608,114810.0,114800.0,0.002]
[1758501394970,0.42978398,114810.0,114800.0,0.002]
[1758501395471,0.76689685,114810.0,114800.0,0.002]
[1758501395663,0.76589685,114810.0,114800.0,0.252]
[1758501395857,0.76589685,114810.0,114800.0,0.339046]
[1758501396062,0.79058398,114810.0,114800.0,0.339046]
[1758501396262,0.3609,114820.0,114810.0,0.1007384]
[1758501396565,0.3608,114820.0,114810.0,0.0137]
[1758501396868,0.3608,114820.0,114810.0,0.1007384]
[1758501397064,0.001,114820.0,114810.0,1.04965127]
[1758501397574,0.0001,114830.0,114820.0,0.1007309]
[1758501397776,0.71580912,114840.0,114830.0,0.0137]
[1758501398068,0.37859625,114840.0,114830.0,0.1007233]
[1758501398366,0.71570912,114840.0,114830.0,0.1007233]
[1758501398769,0.71570912,114840.0,114830.0,0.0137]
[1758501398966,0.37859625,114840.0,114830.0,0.0137]
[1758501399170,0.73270912,114840.0,114830.0,0.0157]
[1758501399374,0.39559625,114840.0,114830.0,0.1031233]
[1758501399568,0.73270912,114840.0,114830.0,0.1031233]
[1758501399771,0.39559625,114840.0,114830.0,0.1031233]
[1758501400074,0.73270912,114840.0,114830.0,0.0161]
[1758501400273,0.80228072,114840.0,114830.0,0.0161]
[1758501400465,0.80228072,114840.0,114810.0,0.0137]
[1758501400466,1.05228072,114840.0,114810.0,0.0137]
[1758501400775,0.6295241,114820.0,114810.0,0.0145]
[1758501400973,0.6295241,114820.0,114810.0,0.0137]
[1758501401275,0.3608,114820.0,114810.0,0.0141]
[1758501401566,0.3608,114820.0,114810.0,0.1011385]
[1758501401869,0.3608,114820.0,114810.0,0.3511385]
[1758501402173,0.3618,114820.0,114810.0,0.3551385]
[1758501402474,0.3618,114820.0,114810.0,0.1051385]
[1758501402671,0.3618,114820.0,114810.0,0.1031385]
[1758501402871,0.3718,114820.0,114810.0,0.1051385]
[1758501403168,0.3718,114820.0,114810.0,0.3551385]
[1758501403373,0.3718,114820.0,114810.0,0.2681]
[1758501403573,0.6405241,114820.0,114810.0,0.1051385]
[1758501404074,0.3718,114820.0,114810.0,0.1051385]
[1758501404465,0.3718,114820.0,114810.0,0.0181]
[1758501404974,0.3718,114820.0,114810.0,0.1051385]
[1758501405567,0.011,114820.0,114810.0,0.7159385]
[1758501405876,0.3609,114830.0,114820.0,0.1007309]
[1758501406072,0.3608,114830.0,114820.0,0.0137]
[1758501406270,0.6295241,114830.0,114820.0,0.0137]
[1758501406471,0.3608,114830.0,114820.0,0.0137]
[1758501406674,0.6295241,114830.0,114820.0,0.0137]
[1758501406868,0.6295241,114830.0,114820.0,0.1007309]
[1758501406869,0.3608,114830.0,114820.0,0.1007309]
[1758501407072,0.3608,114830.0,114820.0,0.3511309]
[1758501407274,0.3618,114830.0,114820.0,0.3521309]
[1758501407577,0.001,114830.0,114820.0,0.3521309]
[1758501407879,0.3618,114830.0,114820.0,0.3521309]
[1758501408177,0.3698,114830.0,114820.0,0.3531309]
[1758501409176,0.3698,114830.0,114820.0,0.0161]
[1758501409374,0.3698,114830.0,114820.0,0.0157]
[1758501409579,0.3698,114830.0,114820.0,0.0161]
[1758501409773,0.6385241,114830.0,114820.0,0.0161]
[1758501409974,0.6385241,114830.0,114820.0,0.0157]
[1758501410276,0.8885241,114830.0,114820.0,0.0161]
[1758501410581,0.91223029,114830.0,114820.0,0.0161]
[1758501410882,0.91223029,114830.0,114820.0,0.0157]
[1758501411184,0.64350619,114830.0,114820.0,0.0157]
[1758501411376,0.91223029,114830.0,114820.0,0.0157]
[1758501411678,0.91223029,114830.0,114820.0,0.1031309]
[1758501411982,0.64350619,114830.0,114820.0,0.1031309]
[1758501412179,0.39350619,114830.0,114820.0,0.1031309]
[1758501412982,0.66223029,114830.0,114820.0,0.1031309]
[1758501413381,0.66223029,114830.0,114820.0,0.0161]
[1758501413583,0.94322702,114830.0,114820.0,0.0161]
[1758501413979,0.94322702,114830.0,114820.0,0.0157]
[1758501414285,0.94322702,114830.0,114820.0,0.1031309]
[1758501414286,0.69322702,114830.0,114820.0,0.1031309]
[1758501414579,0.42450292,114830.0,114820.0,0.1031309]
[1758501414785,0.39350619,114830.0,114820.0,0.1031309]
[1758501414980,0.03270619,114830.0,114820.0,1.004585]
[1758501415376,0.03270619,114830.0,114820.0,0.7358609]
[1758501415789,0.03270619,114830.0,114820.0,0.3750609]
[1758501415993,0.03270619,114830.0,114820.0,0.7358609]
[1758501416192,0.03270619,114830.0,114820.0,0.3750609]
[1758501416393,0.03270619,114830.0,114820.0,0.7358609]
[1758501416789,0.03270619,114830.0,114820.0,2.325415]
[1758501416989,0.009,114830.0,114820.0,2.325415]
[1758501417990,0.009,114830.0,114820.0,0.7139309]
[1758501418191,0.009,114830.0,114820.0,1.6936109]
[1758501418695,0.009,114830.0,114820.0,1.6920109]
[1758501418896,0.03250145,114830.0,114820.0,1.4420109]
[1758501419096,0.009,114830.0,114820.0,0.4639309]
[1758501419296,0.009,114830.0,114820.0,1.8225409]
[1758501419499,0.009,114830.0,114820.0,2.341265]
[1758501419802,0.009,114830.0,114820.0,1.7112209]
[1758501420498,0.009,114830.0,114820.0,2.340745]
[1758501420897,0.07749183,114860.0,114850.0,0.1220982]
[1758501421194,0.02340542,114860.0,114850.0,1.7028923]
[1758501421387,0.07749183,114890.0,114870.0,0.100153]
[1758501421595,0.06307754,114890.0,114880.0,0.1001454]
[1758501421894,0.06307754,114890.0,114880.0,0.01316]
[1758501421895,1.02240491,114890.0,114880.0,0.01316]
[1758501422092,1.27240491,114890.0,114870.0,0.1002525]
[1758501422288,0.6295241,114880.0,114870.0,0.01326]
[1758501422486,0.70520193,114880.0,114870.0,0.100553]
[1758501422688,0.97392603,114880.0,114870.0,0.100553]
[1758501422887,0.97192603,114880.0,114870.0,0.100553]
[1758501423198,0.45320193,114880.0,114870.0,0.100553]
[1758501423602,0.45520193,114880.0,114870.0,0.100553]
[1758501424496,0.46720193,114880.0,114870.0,0.123483]
[1758501424693,0.47020193,114880.0,114870.0,0.124483]
[1758501424898,0.47020193,114880.0,114870.0,0.102553]
[1758501424899,0.73892603,114880.0,114870.0,0.102553]
[1758501425306,0.47020193,114880.0,114870.0,0.01556]
[1758501425497,0.98892603,114880.0,114870.0,0.01516]
[1758501425699,0.98892603,114880.0,114870.0,0.102153]
[1758501425897,0.72020193,114880.0,114870.0,0.102153]
[1758501426101,0.98892603,114880.0,114870.0,0.01556]
[1758501426300,0.98892603,114880.0,114870.0,0.01516]
[1758501426899,0.98892603,114880.0,114870.0,0.01556]
[1758501427094,0.98892603,114880.0,114870.0,0.01516]
[1758501427295,0.98892603,114880.0,114870.0,0.01556]
[1758501427702,0.72020193,114880.0,114870.0,0.01556]
[1758501427904,0.98892603,114880.0,114870.0,0.01556]
[1758501429298,1.01992276,114880.0,114870.0,0.0024]
[1758501429504,1.06641786,114880.0,114870.0,0.0024]
[1758501429896,1.01992276,114880.0,114870.0,0.01595]
[1758501430200,0.46992018,114880.0,114870.0,0.125583]
[1758501430399,0.73864428,114880.0,114870.0,0.102943]
[1758501430604,0.73864428,114880.0,114870.0,0.01595]
[1758501430899,0.73864428,114880.0,114870.0,0.01555]
[1758501430900,0.98864428,114880.0,114870.0,0.01555]
[1758501431102,0.98864428,114880.0,114870.0,0.01595]
[1758501431400,0.98864428,114880.0,114870.0,0.01555]
[1758501431605,1.13294428,114880.0,114870.0,0.01595]
[1758501431910,0.98864428,114880.0,114870.0,0.1029441]
[1758501432103,0.98864428,114880.0,114870.0,0.01595]
[1758501432398,0.73864428,114880.0,114870.0,0.1029441]
[1758501432901,0.46992018,114880.0,114870.0,0.1029441]
[1758501433105,0.46992018,114880.0,114870.0,0.1255841]
[1758501433302,0.46992018,114880.0,114870.0,0.3755841]
[1758501434103,0.46992018,114880.0,114870.0,0.1255841]
[1758501434305,0.46992018,114880.0,114870.0,0.1029441]
[1758501435704,0.46992018,114880.0,114870.0,0.1255841]
[1758501436306,0.44685731,114880.0,114870.0,0.1255841]
[1758501436507,0.46993149,114880.0,114870.0,0.1255841]
[1758501436708,0.44685731,114880.0,114870.0,0.1255841]
[1758501436902,0.3758,114880.0,114870.0,0.3755841]
[1758501437103,0.015,114880.0,114870.0,1.0051082]
[1758501437299,0.3608,114900.0,114890.0,0.1231689]
[1758501437501,0.37816624,114910.0,114900.0,0.1231614]
[1758501437699,0.40124279,114910.0,114900.0,0.1231614]
[1758501438005,0.66996693,114910.0,114900.0,0.01355]
[1758501438199,0.66996693,114910.0,114900.0,0.1005219]
[1758501438400,0.67868742,114910.0,114900.0,0.1005219]
[1758501438702,0.67868742,114910.0,114900.0,0.1265619]
[1758501438902,0.43896332,114910.0,114900.0,0.1265619]
[1758501439098,0.70768742,114910.0,114900.0,0.1265619]
[1758501439404,0.69896693,114910.0,114900.0,0.1265619]
[1758501439806,0.69896693,114910.0,114900.0,0.03959]
[1758501440305,0.71356353,114910.0,114900.0,0.04059]
[1758501440504,0.78257101,114910.0,114900.0,0.1275619]
[1758501440705,0.75357101,114910.0,114900.0,0.1245619]
[1758501440901,0.49784691,114910.0,114900.0,0.1255619]
[1758501441103,0.48925031,114910.0,114900.0,0.1255619]
[1758501441305,0.42024283,114910.0,114900.0,0.1255619]
[1758501441708,0.42889614,114910.0,114900.0,0.1255619]
[1758501442108,0.42024283,114910.0,114900.0,0.1255619]
[1758501442608,0.41424283,114910.0,114900.0,0.1245619]
[1758501442812,0.39987659,114910.0,114900.0,0.1255619]
[1758501443113,0.40880994,114910.0,114900.0,0.1255619]
[1758501443504,0.40880994,114910.0,114900.0,0.1029219]
[1758501443505,0.67753404,114910.0,114900.0,0.1029219]
[1758501444004,0.67753404,114910.0,114900.0,0.01595]
[1758501444205,0.40880994,114910.0,114900.0,0.1029219]
[1758501444516,0.67753404,114910.0,114900.0,0.1029219]
[1758501445310,0.40880994,114910.0,114900.0,0.1248119]
[1758501445507,0.47765743,114910.0,114900.0,0.1248119]
[1758501445812,0.11685743,114910.0,114900.0,0.1248119]
[1758501446012,0.47765743,114910.0,114900.0,0.1248119]
[1758501446214,0.46872408,114910.0,114900.0,0.1248119]
[1758501448512,0.39987659,114910.0,114900.0,0.3748119]
[1758501451022,0.016,114910.0,114900.0,0.643536]
[1758501451217,0.016,114910.0,114900.0,0.3748119]
[1758501451412,0.016,114910.0,114900.0,0.643536]
[1758501452018,0.36084,114920.0,114910.0,0.1006143]
[1758501452213,4e-05,114920.0,114910.0,0.3912284]
[1758501452518,4e-05,114920.0,114910.0,0.1225043]
[1758501452719,4e-05,114920.0,114910.0,0.4833043]
[1758501453310,0.00504,114920.0,114910.0,0.3922284]
[1758501453515,0.01304,114920.0,114910.0,0.3922284]
[1758501453713,0.01304,114920.0,114910.0,0.6422284]
[1758501453912,0.01304,114920.0,114910.0,0.3735043]
[1758501454421,0.00504,114920.0,114910.0,1.0030284]
[1758501454622,0.3608,114940.0,114930.0,0.1224892]
[1758501454817,0.3608,114940.0,114930.0,0.3912133]
[1758501454818,0.38374973,114940.0,114930.0,0.3912133]
[1758501455120,0.3608,114940.0,114930.0,0.3912133]
[1758501455321,0.38374042,114940.0,114930.0,0.1224892]
[1758501456525,0.39274042,114940.0,114930.0,0.1224892]
[1758501457210,0.39274042,114940.0,114930.0,0.1005992]
[1758501457414,0.91146452,114940.0,114930.0,0.01365]
[1758501457618,0.64274042,114940.0,114930.0,0.03594]
[1758501458618,0.39274042,114940.0,114930.0,0.03594]
[1758501460927,0.39274042,114940.0,114930.0,0.4602202]
[1758501461117,0.39274042,114940.0,114930.0,0.1228892]
[1758501461314,0.42373715,114940.0,114930.0,0.4602202]
[1758501461517,0.42373715,114940.0,114930.0,0.03594]
[1758501461715,0.77656652,114940.0,114930.0,0.03594]
[1758501461919,0.8074978,114940.0,114930.0,0.03554]
[1758501462119,0.77656652,114940.0,114930.0,0.03594]
[1758501462521,0.77656652,114940.0,114930.0,0.01405]
[1758501462726,1.04240797,114940.0,114930.0,0.01405]
[1758501462932,0.98007142,114940.0,114930.0,0.01365]
[1758501463136,0.64274042,114940.0,114930.0,0.01405]
[1758501463432,0.98007142,114940.0,114920.0,0.01375]
[1758501463635,0.76002055,114930.0,114890.0,0.05560922]
[1758501463824,0.7216,114900.0,114890.0,0.14248902]
[1758501464127,0.74454042,114900.0,114890.0,0.14248902]
[1758501464428,0.74454042,114900.0,114890.0,0.14288902]
[1758501464925,0.77548474,114900.0,114890.0,0.05590922]
[1758501465126,1.11281574,114900.0,114890.0,0.01405]
[1758501465324,1.49656322,114900.0,114890.0,0.01405]
[1758501465518,1.3782879,114900.0,114890.0,0.01365]
[1758501465722,1.39376097,114900.0,114890.0,0.01405]
[1758501465924,1.39376097,114900.0,114890.0,0.01365]
[1758501466122,1.39376097,114900.0,114890.0,0.01405]
[1758501466325,1.39376097,114900.0,114890.0,0.0044]
[1758501466625,1.39376097,114900.0,114890.0,0.01805]
[1758501467330,1.05642997,114900.0,114890.0,0.01805]
[1758501467528,1.40476097,114900.0,114890.0,0.01605]
[1758501467725,1.34287142,114900.0,114890.0,0.01605]
[1758501468128,1.03649171,114900.0,114890.0,0.01605]
[1758501468432,1.37382271,114900.0,114890.0,0.01605]
[1758501468724,1.37382271,114900.0,114890.0,0.01405]
[1758501468931,1.12782271,114900.0,114890.0,0.03694]
[1758501469724,0.79049171,114900.0,114890.0,0.03694]
[1758501469930,1.12782271,114900.0,114890.0,0.1239197]
[1758501470636,0.83693016,114900.0,114890.0,0.1239197]
[1758501470930,0.79049171,114900.0,114890.0,0.1239197]
[1758501471325,0.7366,114900.0,114890.0,0.1239197]
[1758501471525,0.7366,114900.0,114890.0,0.7112507]
[1758501471737,0.3758,114900.0,114890.0,1.9220507]
[1758501471935,0.3758,114900.0,114890.0,0.7112507]
[1758501472135,0.3758,114900.0,114890.0,1.9231307]
[1758501473023,0.3758,114900.0,114890.0,1.5857197]
[1758501473225,0.3758,114900.0,114890.0,0.1239197]
[1758501473535,0.3758,114900.0,114890.0,0.1235197]
[1758501473738,0.3758,114900.0,114890.0,0.1239197]
[1758501473923,0.3758,114900.0,114890.0,0.1235197]
[1758501474123,0.3758,114900.0,114890.0,0.1239197]
[1758501474735,0.7366,114900.0,114890.0,0.1239197]
[1758501476147,0.3758,114900.0,114890.0,0.7112507]
[1758501476340,0.015,114900.0,114890.0,0.7112507]
[1758501476848,0.3787379,114920.0,114910.0,0.03601]
[1758501477140,0.3787379,114920.0,114910.0,1.579301]
[1758501477736,0.3787379,114920.0,114910.0,1.6662657]
[1758501478143,0.3967379,114920.0,114910.0,1.6662657]
[1758501478339,0.3967379,114920.0,114910.0,1.6646657]
[1758501478540,0.3967379,114920.0,114910.0,1.9146657]
[1758501479249,0.4037379,114920.0,114910.0,1.9156657]
[1758501480050,0.3857379,114920.0,114910.0,1.9156657]
[1758501480243,0.3857379,114920.0,114910.0,1.9186657]
[1758501480444,0.3608,114920.0,114910.0,1.9176657]
[1758501480651,0.3628,114920.0,114910.0,1.9176657]
[1758501480848,0.002,114920.0,114910.0,1.9176657]
[1758501481047,0.002,114920.0,114910.0,1.5803347]
[1758501481353,0.002,114920.0,114910.0,2.2854657]
[1758501481550,0.3608,114940.0,114930.0,0.1000995]
[1758501481757,0.3608,114950.0,114940.0,0.122952]
[1758501481944,0.36931618,114960.0,114950.0,0.1229444]
[1758501482144,0.36931618,114960.0,114950.0,0.03601]
[1758501482650,0.36931618,114960.0,114950.0,1.23825]
[1758501482853,0.95664718,114960.0,114950.0,0.01315]
[1758501483059,0.61931618,114960.0,114950.0,0.01315]
[1758501483551,0.62031618,114960.0,114950.0,0.01355]
[1758501483743,0.64306854,114960.0,114950.0,0.01355]
[1758501483938,0.98039954,114960.0,114950.0,0.01355]
[1758501484149,0.62031618,114960.0,114950.0,0.01355]
[1758501484353,0.95764718,114960.0,114950.0,0.01355]
[1758501484554,0.96764718,114960.0,114950.0,0.01355]
[1758501484953,0.99039503,114960.0,114950.0,0.01315]
[1758501485250,0.99039503,114960.0,114950.0,0.01355]
[1758501485442,0.65306403,114960.0,114950.0,0.01355]
[1758501485643,0.99039503,114960.0,114950.0,0.0004]
[1758501485844,0.29226403,114960.0,114940.0,0.01325]
[1758501486045,0.7216,114950.0,114940.0,0.01325]
[1758501486244,1.058931,114950.0,114940.0,0.01315]
[1758501486449,1.058931,114950.0,114930.0,0.01405]
[1758501486751,0.3608,114940.0,114930.0,0.01405]
[1758501486955,0.3608,114940.0,114930.0,0.1237594]
[1758501487453,0.3608,114940.0,114930.0,0.1004994]
[1758501487653,0.3608,114940.0,114930.0,0.01355]
[1758501487857,0.948131,114940.0,114930.0,0.01355]
[1758501488355,0.948131,114940.0,114930.0,0.01315]
[1758501488557,0.63354376,114940.0,114930.0,0.01355]
[1758501488951,0.38354376,114940.0,114930.0,0.1243594]
[1758501489256,0.3608,114940.0,114930.0,1.3148394]
[1758501489450,0.3608,114940.0,114930.0,0.1243594]
[1758501489658,0.3835454,114940.0,114930.0,1.3129594]
[1758501489857,0.3638,114940.0,114930.0,0.1233594]
[1758501490053,0.3728,114940.0,114930.0,1.3109594]
[1758501490445,0.38654622,114940.0,114930.0,1.3109594]
[1758501490646,0.3698,114940.0,114930.0,1.3099594]
[1758501490846,0.3698,114940.0,114930.0,0.1229594]
[1758501491047,0.3698,114940.0,114930.0,1.3087994]
[1758501491253,0.3728,114940.0,114930.0,1.3091994]
[1758501491654,0.5142,114940.0,114930.0,0.1233594]
[1758501491856,0.5142,114940.0,114930.0,1.3064394]
[1758501493258,0.5162,114940.0,114930.0,1.3064394]
[1758501493563,0.5162,114940.0,114930.0,1.3059994]
[1758501493859,0.3688,114940.0,114930.0,1.8933304]
[1758501494162,0.3688,114940.0,114930.0,1.5559994]
[1758501494361,0.3688,114940.0,114930.0,1.8933304]
[1758501494362,0.008,114940.0,114930.0,1.8933304]
[1758501494950,0.002,114940.0,114930.0,0.3733594]
[1758501495150,0.011,114940.0,114930.0,1.5558794]
[1758501495353,0.009,114940.0,114930.0,1.8932104]
[1758501495958,0.009,114940.0,114930.0,2.2540104]
[1758501496459,0.3608,114960.0,114950.0,0.03382]
[1758501496656,0.3608,114960.0,114950.0,1.2983544]
[1758501497261,0.3608,114960.0,114950.0,1.2973544]
[1758501497472,0.3608,114960.0,114950.0,0.4580854]
[1758501497671,0.3698,114960.0,114950.0,1.6340854]
[1758501497873,0.3698,114960.0,114950.0,0.1207544]
[1758501498068,0.3698,114960.0,114950.0,1.2961944]
[1758501498371,0.3718,114960.0,114950.0,1.6327254]
[1758501498559,0.3718,114960.0,114950.0,1.2953944]
[1758501499151,0.3718,114960.0,114950.0,1.6327254]
[1758501499366,0.3718,114960.0,114950.0,1.2953944]
[1758501499860,0.3718,114960.0,114950.0,1.6327254]
[1758501500066,0.3718,114960.0,114950.0,1.2953944]
[1758501500768,0.011,114960.0,114950.0,3.1288454]
[1758501501067,0.3718,114960.0,114950.0,3.1288454]
[1758501501364,0.39456835,114960.0,114950.0,3.1288454]
[1758501501566,0.39456835,114960.0,114950.0,1.53382]
[1758501501762,0.39456835,114960.0,114950.0,1.6207543]
[1758501502065,0.39456835,114960.0,114950.0,1.2861543]
[1758501502267,0.98189935,114960.0,114950.0,1.19958]
[1758501502455,0.98189935,114960.0,114950.0,0.03422]
[1758501502654,0.98189935,114960.0,114950.0,1.17738]
[1758501502954,1.01285064,114960.0,114950.0,1.17674]
[1758501503159,1.01285064,114960.0,114950.0,1.17714]
[1758501503455,1.01285064,114960.0,114950.0,1.17674]
[1758501503654,1.01285064,114960.0,114950.0,0.0131]
[1758501503859,1.01285064,114960.0,114950.0,1.17518]
[1758501504066,1.01285064,114960.0,114950.0,0.0004]
[1758501504371,1.0283378,114960.0,114940.0,1.17436]
[1758501504675,0.72909578,114950.0,114940.0,1.17436]
[1758501504860,0.75186413,114950.0,114940.0,1.17426]
[1758501505254,0.79830258,114950.0,114940.0,1.17426]
[1758501505560,0.79830258,114950.0,114940.0,1.17142]
[1758501506265,0.4300068,114950.0,114940.0,1.17042]
[1758501506459,0.7673378,114950.0,114940.0,1.17042]
[1758501506667,1.45768901,114950.0,114930.0,0.0148]
[1758501506873,0.77556172,114940.0,114920.0,1.15572]
[1758501507168,0.74456945,114930.0,114920.0,1.15572]
[1758501507371,0.4609915,114930.0,114920.0,1.16962]
[1758501507570,1.0483225,114930.0,114920.0,1.17002]
[1758501507772,0.4300068,114930.0,114920.0,1.256977]
[1758501508067,0.41455385,114930.0,114920.0,1.17002]
[1758501508374,0.41955385,114930.0,114920.0,1.256977]
[1758501509560,0.42155385,114930.0,114920.0,1.256977]
[1758501510664,0.39056835,114930.0,114920.0,1.844308]
[1758501510870,0.39056835,114930.0,114920.0,1.506977]
[1758501511274,0.3678,114930.0,114920.0,1.506977]
[1758501511571,0.3678,114930.0,114920.0,1.844308]
[1758501511773,0.3658,114930.0,114920.0,1.844308]
[1758501511969,0.3668,114930.0,114920.0,1.844308]
[1758501512673,0.3658,114930.0,114920.0,0.124107]
[1758501512860,0.3658,114930.0,114920.0,1.277667]
[1758501513465,0.3628,114930.0,114920.0,1.277267]
[1758501513666,0.3628,114930.0,114920.0,1.2776269]
[1758501513972,0.3608,114930.0,114920.0,1.2772269]
[1758501514173,0.3608,114930.0,114920.0,1.2796269]
[1758501514871,0.3608,114930.0,114920.0,0.1261069]
[1758501515061,0.698131,114930.0,114920.0,1.16978]
[1758501515266,0.698131,114930.0,114920.0,1.2567369]
[1758501515463,0.3608,114930.0,114920.0,1.2563369]
[1758501515662,0.3608,114930.0,114920.0,1.2553369]
[1758501515874,0.3618,114930.0,114920.0,0.0159]
[1758501516178,0.3638,114930.0,114920.0,1.2537369]
[1758501516672,0.3668,114930.0,114920.0,1.2537369]
[1758501517469,0.3668,114930.0,114920.0,0.0143]
[1758501517673,0.705131,114930.0,114920.0,0.0143]
[1758501517981,0.72791422,114930.0,114920.0,1.16626]
[1758501518168,0.72791422,114930.0,114920.0,1.16666]
[1758501518369,0.705131,114930.0,114920.0,1.16666]
[1758501518574,0.705131,114930.0,114920.0,1.16662]
[1758501519172,0.705131,114930.0,114920.0,0.0143]
[1758501519374,0.705131,114930.0,114920.0,1.16662]
[1758501519565,0.72790914,114930.0,114920.0,1.16662]
[1758501519770,0.72790914,114930.0,114920.0,1.16622]
[1758501519970,0.72790914,114930.0,114920.0,1.16662]
[1758501520784,0.65875921,114930.0,114920.0,1.16662]
[1758501520973,0.90875921,114930.0,114920.0,0.0004]
[1758501521377,0.90875921,114930.0,114900.0,0.0135]
[1758501521678,0.98978107,114910.0,114900.0,0.0143]
[1758501521879,1.01255921,114910.0,114900.0,0.0143]
[1758501522275,0.98978107,114910.0,114900.0,0.0143]
[1758501522475,0.98978107,114910.0,114900.0,0.0135]
[1758501522678,1.01253832,114910.0,114900.0,0.0149]
[1758501523176,1.01253832,114910.0,114900.0,0.0014]
[1758501523373,1.26253832,114910.0,114900.0,0.0034]
[1758501524180,1.27153832,114910.0,114900.0,0.0014]
[1758501524580,1.27153832,114910.0,114900.0,0.0004]
[1758501524782,1.27153832,114910.0,114900.0,0.0014]
[1758501525479,1.27553832,114910.0,114900.0,0.0004]
[1758501525681,1.26653832,114910.0,114900.0,0.0004]
[1758501525985,1.27853832,114910.0,114880.0,0.0008]
[1758501526276,1.27853832,114910.0,114880.0,0.0003]
[1758501526277,1.00717085,114890.0,114880.0,0.0003]
[1758501526488,0.73898978,114890.0,114870.0,1.16574]
[1758501526676,0.3608,114880.0,114870.0,1.16574]
[1758501528873,0.3608,114880.0,114870.0,1.2527347]
[1758501529076,0.3608,114880.0,114870.0,1.16574]
[1758501529279,0.3658,114880.0,114870.0,1.16674]
[1758501530982,0.3658,114880.0,114870.0,1.16574]
[1758501531290,0.3678,114880.0,114870.0,1.16574]
[1758501531485,0.37647814,114880.0,114870.0,1.16614]
[1758501532077,0.62647814,114880.0,114870.0,0.0143]
[1758501532282,0.89465921,114880.0,114870.0,0.0143]
[1758501532482,0.62647814,114880.0,114860.0,1.16502]